bitfinex-derivatives/quotes_ETHF0:USTF0_20240913
["timestamp","ask_amount","ask_price","bid_price","bid_amount"]
[1726241815262,1.43433,2412.0,2411.6,0.41459]
[1726241815451,1.0198,2412.0,2411.3,3.2078]
[1726241815656,1.0198,2412.0,2411.5,0.4146]
[1726241815961,1.0198,2412.0,2411.7,0.41457]
[1726241816261,1.0198,2412.0,2411.2,3.98]
[1726241816262,1.0198,2412.0,2411.3,8.84944644]
[1726241816561,1.0198,2412.0,2411.2,3.2078]
[1726241816763,20.16444425,2412.1,2411.6,3.2078]
[1726241817063,20.57895425,2412.1,2411.7,0.41456]
[1726241817265,20.16444425,2412.1,2411.8,0.41456]
[1726241817466,20.57895425,2412.1,2411.7,0.41457]
[1726241817858,20.57895425,2412.1,2411.6,3.2078]
[1726241817859,20.16444425,2412.1,2411.6,3.2078]
[1726241818061,20.16444425,2412.1,2412.0,0.00151839]
[1726241818456,20.16444425,2412.1,2411.3,11.80430409]
[1726241818457,1.03632,2412.0,2411.3,11.80430409]
[1726241818764,0.41456,2411.9,2411.5,0.4146]
[1726241819062,0.9953,2412.0,2411.6,3.2078]
[1726241819364,1.40984,2412.0,2411.3,3.2078]
[1726241819567,1.40984,2412.0,2411.6,0.41459]
[1726241819863,1.40984,2412.0,2411.3,11.85883883]
[1726241819864,0.41454,2411.9,2411.3,11.85883883]
[1726241820057,1.40983,2412.0,2411.3,3.2078]
[1726241820261,1.40983,2412.0,2411.7,0.41457]
[1726241820458,0.41455,2411.9,2411.6,0.41459]
[1726241820959,0.9953,2412.0,2411.3,3.2078]
[1726241820960,4.9753,2412.0,2411.3,3.2078]
[1726241821161,0.41464,2411.4,2411.1,0.41467]
[1726241821359,1.03653,2411.6,2410.9,0.4147]
[1726241821657,0.41468,2411.1,2410.8,9.19674578]
[1726241821856,0.41468,2411.1,2410.8,0.41472]
[1726241822057,0.41468,2411.1,2410.5,3.2078]
[1726241822058,0.41476,2410.7,2410.5,3.2078]
[1726241822261,0.41472,2410.9,2410.6,0.41477]
[1726241822453,7.1878,2411.1,2410.7,0.41474]
[1726241822454,0.41471,2411.0,2410.7,0.41474]
[1726241822652,0.947,2411.3,2410.4,3.2078]
[1726241822861,0.947,2411.3,2411.2,0.41466]
[1726241823261,0.947,2411.3,2410.7,3.2078]
[1726241823566,1.8637,2411.5,2411.0,3.2078]
[1726241823866,1.8637,2411.5,2411.3,0.41464]
[1726241824055,2.27831,2411.5,2411.2,0.41465]
[1726241824262,1.8637,2411.5,2410.7,4.24465]
[1726241824565,1.8637,2411.5,2411.3,0.41465]
[1726241824861,2.27832,2411.5,2411.2,0.41466]
[1726241825062,0.41465,2411.3,2411.1,0.41468]
[1726241825258,0.41465,2411.3,2411.0,0.41469]
[1726241825460,3.2078,2411.4,2410.6,3.2078]
[1726241825659,0.41466,2411.3,2411.0,0.41469]
[1726241825965,3.98,2411.4,2410.6,3.62256]
[1726241826170,0.41471,2411.0,2410.2,3.2078]
[1726241826371,7.1878,2411.4,2410.3,1.03705]
[1726241826681,0.41471,2411.0,2410.8,0.41473]
[1726241826861,1.03663,2411.3,2410.3,8.67246589]
[1726241827056,1.0075,2410.9,2410.6,0.41476]
[1726241827367,1.0075,2410.9,2410.2,3.2078]
[1726241827569,1.35345,2410.8,2410.2,3.2078]
[1726241827872,0.9387,2410.8,2410.7,0.41475]
[1726241828570,0.9387,2410.8,2410.2,3.2078]
[1726241828571,1.35344,2410.8,2410.6,0.41476]
[1726241828773,0.9387,2410.8,2410.2,3.2078]
[1726241829068,3.2078,2410.3,2409.7,3.2078]
[1726241829271,0.9631,2410.2,2409.2,4.24531]
[1726241829575,1.40046,2410.1,2409.8,0.41489]
[1726241829871,0.41487,2410.0,2409.7,0.41491]
[1726241830072,0.41488,2410.0,2409.7,0.41492]
[1726241830275,0.41488,2410.0,2409.3,8.89261292]
[1726241830276,0.9856,2410.1,2409.5,3.2078]
[1726241830565,0.9856,2410.1,2410.0,0.41487]
[1726241830766,0.9631,2410.2,2410.1,0.41485]
[1726241830970,0.9631,2410.2,2409.5,3.2078]
[1726241830971,0.9631,2410.2,2410.0,0.41487]
[1726241831168,1.37794,2410.2,2409.9,0.41487]
[1726241831970,0.41485,2410.1,2409.5,3.2078]
[1726241832164,0.9631,2410.2,2409.5,3.2078]
[1726241832366,0.9631,2410.2,2409.8,0.4149]
[1726241832563,0.41487,2410.1,2409.8,0.4149]
[1726241832773,0.41491,2409.8,2409.5,3.2078]
[1726241833071,3.2078,2410.0,2409.5,3.2078]
[1726241833072,1.41308,2410.0,2409.5,3.2078]
[1726241833471,0.9982,2410.0,2409.5,3.2078]
[1726241833678,0.9507,2409.9,2409.5,3.2078]
[1726241834181,0.9507,2409.9,2409.7,0.41491]
[1726241834372,0.9507,2409.9,2409.5,3.2078]
[1726241834572,0.9507,2409.9,2409.6,0.41494]
[1726241834774,1.3656,2409.9,2409.6,0.41494]
[1726241834966,1.3656,2409.9,2409.5,3.2078]
[1726241834967,0.41493,2409.7,2409.5,3.2078]
[1726241835162,0.9507,2409.9,2409.0,0.6066]
[1726241835163,3.98,2409.8,2409.4,0.41497]
[1726241835372,0.41493,2409.7,2409.4,0.41497]
[1726241835774,0.41492,2409.7,2409.4,0.41497]
[1726241836079,0.9507,2409.9,2409.3,1.03749]
[1726241836375,0.9507,2409.9,2409.8,0.4149]
[1726241837975,0.9507,2409.9,2409.5,3.2078]
[1726241838174,0.9507,2409.9,2409.5,3.62276]
[1726241838380,0.9507,2409.9,2409.5,3.2078]
[1726241838678,1.3656,2409.9,2409.5,3.2078]
[1726241838982,1.36559,2409.9,2409.2,4.24532]
[1726241839188,1.3656,2409.9,2409.6,0.41493]
[1726241839480,0.41491,2409.8,2409.6,0.41493]
[1726241839680,0.41491,2409.8,2409.2,3.2078]
[1726241839881,3.2078,2409.5,2408.4,1.24822405]
[1726241840076,3.98,2409.3,2408.3,3.2078]
[1726241840271,4.395,2409.3,2408.5,1.03783]
[1726241840477,0.41502,2409.2,2408.9,0.41505]
[1726241840685,0.41502,2409.2,2408.6,3.2078]
[1726241840875,3.98,2409.3,2408.6,3.2078]
[1726241841075,4.39499,2409.3,2408.6,3.2078]
[1726241841281,0.41501,2409.2,2408.9,0.41505]
[1726241841694,3.98,2409.3,2408.9,0.41505]
[1726241841887,1.0389,2409.2,2408.9,0.41505]
[1726241842075,0.41503,2409.1,2408.9,0.41505]
[1726241842275,4.2467,2409.2,2408.6,3.2078]
[1726241842579,4.2467,2409.2,2408.8,0.41507]
[1726241842580,0.41504,2409.1,2408.8,0.41507]
[1726241842979,0.41503,2409.1,2408.8,0.41507]
[1726241843175,4.2467,2409.2,2408.2,0.606]
[1726241843376,0.41514,2408.5,2408.2,0.41517]
[1726241843588,1.0389,2409.2,2408.4,1.03787]
[1726241844083,3.98,2409.6,2408.8,1.0377]
[1726241844289,4.39495,2409.6,2408.8,1.0377]
[1726241844486,0.41498,2409.4,2408.7,0.20503749]
[1726241844789,5.0344,2409.6,2408.8,4.2455]
[1726241845081,1.0544,2409.6,2409.3,0.41498]
[1726241845290,1.0544,2409.6,2408.8,13.19757156]
[1726241845476,1.0544,2409.6,2408.8,12.15987156]
[1726241845679,1.0544,2409.6,2408.9,0.41505]
[1726241845876,1.0544,2409.6,2408.6,0.4151]
[1726241845877,3.98,2408.9,2408.6,0.4151]
[1726241846187,3.98,2408.9,2408.2,0.41517]
[1726241846188,3.98,2408.8,2408.2,0.41517]
[1726241846377,3.98,2408.8,2407.8,8.92108256]
[1726241846378,3.2078,2408.6,2407.8,8.92108256]
[1726241846688,0.41511,2408.6,2408.1,0.41519]
[1726241846987,0.41512,2408.6,2408.1,0.41518]
[1726241847184,3.62292,2408.6,2408.1,0.41518]
[1726241847493,3.2078,2408.2,2407.7,0.41527]
[1726241847687,4.39514,2408.5,2407.5,0.9279]
[1726241847985,4.39514,2408.5,2408.0,0.41521]
[1726241848291,4.39514,2408.5,2407.5,0.9279]
[1726241848292,0.41513,2408.5,2407.7,3.2078]
[1726241848483,0.41513,2408.5,2408.0,0.41521]
[1726241848677,7.1133,2408.8,2408.0,3.2078]
[1726241848890,0.41503,2409.1,2408.3,3.2078]
[1726241849080,2.0376,2409.2,2408.5,0.41512]
[1726241849388,0.41505,2409.0,2408.5,0.41512]
[1726241849585,3.98,2408.9,2407.9,3.2078]
[1726241849789,3.98,2408.9,2408.2,3.2078]
[1726241849993,0.41509,2408.7,2408.3,8.94536197]
[1726241850282,5.01767,2408.9,2407.9,3.2078]
[1726241850498,5.2454,2409.2,2408.3,3.2078]
[1726241850683,5.2454,2409.2,2408.6,0.4151]
[1726241850877,5.2454,2409.2,2408.6,0.41511]
[1726241851085,5.2454,2409.2,2408.3,3.2078]
[1726241851490,5.2454,2409.2,2408.4,3.62294]
[1726241851693,5.2454,2409.2,2408.1,0.2029]
[1726241851694,0.41507,2408.9,2408.5,0.41513]
[1726241852081,0.41505,2409.0,2408.6,0.41511]
[1726241852284,3.2078,2409.0,2408.3,3.2078]
[1726241852493,4.1668,2409.0,2408.3,3.2078]
[1726241852687,0.4151,2408.7,2408.3,3.62296]
[1726241852989,0.41507,2408.9,2408.5,0.41513]
[1726241853192,0.41508,2408.8,2408.4,0.41514]
[1726241853391,0.959,2409.0,2408.3,0.41515]
[1726241853392,0.41511,2408.7,2408.3,0.41515]
[1726241853987,0.41512,2408.6,2408.2,0.41517]
[1726241854185,0.41512,2408.6,2408.3,0.41516]
[1726241854382,7.1878,2408.8,2408.0,8.83848333]
[1726241854590,7.1878,2408.8,2407.9,0.41522]
[1726241854591,3.2078,2408.4,2407.9,0.41522]
[1726241854787,0.9587,2408.5,2407.9,0.41523]
[1726241854788,4.1665,2408.5,2407.9,0.41523]
[1726241855090,0.41516,2408.4,2408.1,0.41519]
[1726241855291,0.41515,2408.4,2408.1,0.41519]
[1726241855489,0.41515,2408.4,2407.8,3.2078]
[1726241855490,0.41517,2408.3,2408.0,0.41521]
[1726241856084,3.2078,2408.1,2407.4,3.2078]
[1726241856285,3.2078,2408.1,2406.1,2.07766]
[1726241856286,3.98,2407.6,2407.0,3.41587892]
[1726241856592,3.98,2407.6,2407.4,0.4153]
[1726241856795,3.98,2407.6,2407.3,0.41533]
[1726241856989,3.98,2407.6,2407.4,0.41531]
[1726241857183,3.98,2407.6,2407.2,0.41534]
[1726241857404,3.98,2407.6,2406.8,0.41069968]
[1726241857696,7.1878,2407.6,2406.9,8.68894406]
[1726241858198,4.49,2407.4,2406.7,8.68894406]
[1726241858495,0.41536,2407.2,2406.9,0.4154]
[1726241858699,0.41534,2407.3,2406.9,0.4154]
[1726241858903,0.41535,2407.2,2406.7,0.41544]
[1726241859105,0.41535,2407.2,2406.8,0.41541]
[1726241859395,3.2078,2407.3,2406.6,3.62325]
[1726241859396,3.6232,2407.0,2406.6,3.62325]
[1726241859590,1.0381,2407.9,2406.6,3.62325]
[1726241859591,4.49,2407.8,2406.6,3.41695887]
[1726241859791,0.41533,2407.4,2406.6,3.2078]
[1726241860086,4.49,2407.7,2406.7,9.54254996]
[1726241860287,0.41529,2407.6,2407.2,0.41534]
[1726241860490,4.49,2407.4,2406.9,3.2078]
[1726241860686,4.90532,2407.4,2406.7,0.9239]
[1726241860888,4.49,2407.4,2407.1,0.41536]
[1726241861093,4.49,2407.4,2406.7,0.9239]
[1726241861402,4.49,2407.4,2406.6,3.2078]
[1726241861597,0.41536,2407.2,2406.6,3.2078]
[1726241861793,3.2078,2407.2,2406.6,3.2078]
[1726241861995,3.2078,2407.2,2406.4,8.74946521]
[1726241861996,0.41536,2407.2,2406.3,4.24657]
[1726241862297,4.49,2407.1,2406.7,0.41543]
[1726241862505,0.41539,2407.0,2406.6,0.41545]
[1726241862695,0.41541,2406.9,2406.3,3.2078]
[1726241862896,3.2078,2406.9,2406.3,3.2078]
[1726241863097,4.49,2406.8,2406.3,3.2078]
[1726241863297,4.49,2406.5,2406.3,0.4155]
[1726241863494,3.2078,2406.6,2405.5,0.7207]
[1726241863691,4.49,2406.5,2406.1,0.41554]
[1726241863905,4.49,2406.5,2406.1,0.41553]
[1726241864212,1.0456,2406.6,2406.3,0.4155]
[1726241864405,1.0456,2406.6,2405.7,3.2078]
[1726241864406,0.41547,2406.6,2406.2,0.41552]
[1726241864702,2.1046,2407.1,2406.4,8.82933595]
[1726241864889,2.1046,2407.1,2406.5,0.41546]
[1726241865091,2.1046,2407.1,2406.0,4.24668]
[1726241865292,3.2078,2406.9,2406.3,3.2078]
[1726241865495,4.49,2406.8,2406.4,8.56946373]
[1726241865700,4.49,2406.8,2406.5,0.41546]
[1726241865897,4.49,2406.8,2406.3,0.4155]
[1726241866100,0.41545,2406.7,2406.3,0.41551]
[1726241866293,4.90543,2406.8,2406.1,3.2078]
[1726241866494,0.41544,2406.7,2406.3,0.4155]
[1726241866800,4.49,2406.8,2406.1,12.03185095]
[1726241867013,4.49,2406.8,2406.1,3.2078]
[1726241867302,4.49,2406.5,2405.5,0.7207]
[1726241867498,4.49,2406.1,2405.4,3.2078]
[1726241867698,3.62337,2406.0,2405.7,0.41561]
[1726241867903,3.2078,2406.0,2405.0,3.9285]
[1726241868094,4.49,2406.1,2405.8,0.41559]
[1726241868294,4.49,2406.1,2405.2,8.57681162]
[1726241868295,0.41559,2405.9,2405.2,8.57681162]
[1726241868493,0.4157,2405.2,2404.6,3.2078]
[1726241868695,4.49,2405.2,2404.4,1.03959]
[1726241868895,4.49,2405.2,2405.0,0.41572]
[1726241869096,3.51157,2405.4,2404.5,1.03956]
[1726241869097,3.0959,2405.4,2404.6,1.03948]
[1726241869294,3.0959,2405.4,2404.5,8.60728054]
[1726241869490,3.2078,2405.3,2404.4,1.03959]
[1726241869694,3.2078,2405.3,2404.6,8.77076059]
[1726241869901,0.41571,2405.2,2404.6,8.77076059]
[1726241870101,4.49,2405.2,2404.9,0.41575]
[1726241870299,4.49,2405.2,2404.3,3.2078]
[1726241870493,2.50608,2405.4,2404.7,8.61496307]
[1726241870699,2.50608,2405.4,2405.2,0.41569]
[1726241870700,2.0904,2405.4,2405.2,0.41569]
[1726241870893,2.0904,2405.4,2404.6,1.03951]
[1726241870894,2.0904,2405.4,2405.1,0.41571]
[1726241871102,4.49,2405.2,2405.1,0.41572]
[1726241871403,8.11343,2405.6,2405.3,0.41568]
[1726241871714,7.6978,2405.6,2404.8,8.88418765]
[1726241871896,3.2078,2405.3,2404.8,12.09198765]
[1726241872095,1.9881,2405.5,2403.7,3.2078]
[1726241872096,7.6978,2404.9,2403.7,3.2078]
[1726241872302,4.49,2404.7,2403.7,3.2078]
[1726241872595,2.07743,2406.5,2404.2,3.2078]
[1726241872596,7.6978,2405.3,2404.2,3.2078]
[1726241872904,1.9881,2405.2,2405.0,0.41573]
[1726241873106,1.9881,2405.2,2405.1,0.41572]
[1726241873400,1.9881,2405.2,2404.4,0.2017]
[1726241873401,2.4038,2405.2,2404.4,0.2017]
[1726241873597,2.4038,2405.2,2405.1,0.41572]
[1726241873598,1.9881,2405.2,2405.1,0.41572]
[1726241873898,1.9881,2405.2,2404.5,4.24736]
[1726241873899,8.369,2405.2,2404.6,8.98447215]
[1726241874100,8.369,2405.2,2404.2,4.96278]
[1726241874101,0.9845,2405.1,2404.2,3.9231]
[1726241874298,0.9845,2405.1,2404.0,1.03977]
[1726241874299,4.49,2405.0,2404.0,1.03977]
[1726241874496,7.6978,2405.0,2404.5,8.94368523]
[1726241874701,0.9961,2404.9,2404.1,8.94368523]
[1726241874900,0.41579,2404.7,2404.0,4.70750369]
[1726241875098,3.2078,2404.4,2403.9,3.2078]
[1726241875303,2.0059,2404.3,2403.4,3.4032]
[1726241875503,2.0059,2404.3,2404.2,0.41587]
[1726241875704,2.0059,2404.3,2404.0,0.4159]
[1726241875903,2.0059,2404.3,2403.5,1.03999]
[1726241876104,2.0059,2404.3,2404.1,0.41588]
[1726241876410,2.0059,2404.3,2403.6,8.92659061]
[1726241876600,2.0059,2404.3,2403.7,3.2078]
[1726241876800,2.0059,2404.3,2403.8,8.97080231]
[1726241877101,3.2078,2404.7,2403.7,3.2078]
[1726241877408,2.0059,2404.6,2403.8,8.79137326]
[1726241877614,0.41582,2404.5,2404.2,0.41586]
[1726241877901,2.0059,2404.6,2403.8,8.79137326]
[1726241878298,2.42171,2404.6,2403.8,8.79137326]
[1726241878506,2.0059,2404.6,2404.4,0.41583]
[1726241878816,2.0059,2404.6,2404.5,0.41582]
[1726241879001,2.42171,2404.6,2404.3,0.41585]
[1726241879214,2.0059,2404.6,2403.8,1.03986]
[1726241879508,0.41589,2404.1,2404.0,8.7181275]
[1726241879711,4.49,2404.4,2403.9,0.41591]
[1726241879913,0.41587,2404.2,2403.5,1.03999]
[1726241880102,3.2078,2404.3,2403.3,3.2078]
[1726241880103,7.1978,2404.3,2403.3,3.2078]
[1726241880310,7.1978,2404.3,2403.4,1.04003]
[1726241880505,2.0059,2404.6,2403.0,3.2078]
[1726241880506,3.2078,2404.0,2403.0,3.2078]
[1726241880700,3.99,2403.6,2403.0,3.2078]
[1726241880904,2.02082,2403.9,2403.6,0.41596]
[1726241880905,6.37463,2403.9,2403.6,0.41596]
[1726241881207,5.9587,2403.9,2403.5,0.41599]
[1726241881413,5.9587,2403.9,2403.1,8.68664856]
[1726241881613,1.9687,2403.9,2403.5,0.41598]
[1726241881905,1.9687,2403.9,2403.2,1.04012]
[1726241882107,1.9687,2403.9,2403.1,8.68664856]
[1726241882312,8.11376,2403.7,2402.3,3.2078]
[1726241882609,8.11376,2403.7,2402.1,2.99231]
[1726241882610,3.2078,2403.3,2402.6,8.975078]
[1726241882910,4.49,2403.7,2403.0,1.04018]
[1726241883102,3.2078,2403.8,2403.3,0.41601]
[1726241883302,3.2078,2403.8,2403.3,0.41603]
[1726241883303,0.41599,2403.6,2403.3,0.41603]
[1726241883609,0.41599,2403.5,2402.8,1.04029]
[1726241883810,0.41603,2403.3,2402.7,3.2078]
[1726241884010,0.41603,2403.3,2403.0,0.41607]
[1726241884206,0.41602,2403.4,2403.1,0.41606]
[1726241884398,0.41602,2403.4,2402.7,3.2078]
[1726241884399,4.2521,2403.5,2402.7,3.2078]
[1726241884802,4.2521,2403.5,2402.8,1.04029]
[1726241885006,1.0443,2403.5,2402.8,8.96751082]
[1726241885210,0.41607,2403.1,2402.8,9.38362082]
[1726241885517,0.41603,2403.3,2403.1,0.41606]
[1726241885711,4.66811,2403.5,2403.2,0.41604]
[1726241885910,0.41602,2403.4,2403.1,0.41605]
[1726241886214,4.2521,2403.5,2403.3,0.41602]
[1726241886512,3.2078,2403.8,2403.6,0.41597]
[1726241886728,3.2078,2403.8,2403.4,0.02081765]
[1726241887110,4.49,2404.3,2403.5,4.1608]
[1726241887319,3.2078,2403.8,2403.5,8.53394847]
[1726241887520,3.2078,2404.3,2403.2,1.04012]
[1726241887815,3.2078,2404.3,2403.3,3.2078]
[1726241888116,7.6978,2404.0,2403.4,3.2078]
[1726241888318,1.009,2403.9,2403.0,3.2078]
[1726241888615,1.0295,2403.9,2403.3,11.89142796]
[1726241888911,1.0295,2403.9,2403.1,8.68362796]
[1726241888912,4.49,2404.3,2403.8,3.2078]
[1726241889112,4.49,2404.3,2403.5,3.2078]
[1726241889308,5.2463,2404.7,2403.5,3.2078]
[1726241889309,3.2078,2404.4,2403.9,8.68362796]
[1726241889516,3.2078,2404.4,2404.0,0.4159]
[1726241889710,0.41583,2404.5,2403.9,0.41592]
[1726241889909,4.90585,2404.4,2403.8,3.62373]
[1726241890221,4.49,2404.4,2403.8,3.2078]
[1726241890510,7.6978,2404.4,2404.0,0.41589]
[1726241890708,8.11364,2404.4,2403.9,0.41592]
[1726241890904,7.6978,2404.4,2403.8,3.2078]
[1726241891214,6.5285,2404.7,2404.3,0.41585]
[1726241891523,7.6978,2405.5,2404.6,3.2078]
[1726241891722,0.33268671,2406.3,2405.3,0.41568]
[1726241891723,3.6234,2405.8,2405.3,0.41568]
[1726241892014,3.2078,2405.8,2404.9,3.2078]
[1726241892216,3.2078,2405.8,2405.3,0.41567]
[1726241892404,3.2078,2405.8,2405.0,8.7272061]
[1726241892607,3.2078,2405.8,2405.2,3.2078]
[1726241893310,3.2078,2405.8,2405.5,0.41564]
[1726241893515,3.2078,2405.8,2405.2,3.2078]
[1726241893814,3.6234,2405.8,2405.3,0.41568]
[1726241894114,3.6234,2405.8,2405.2,3.2078]
[1726241894115,3.2078,2405.8,2405.4,0.41565]
[1726241894312,3.2078,2405.8,2405.2,3.2078]
[1726241894819,6.86979,2405.9,2405.4,0.41565]
[1726241895013,3.2078,2405.5,2404.2,3.2078]
[1726241895219,3.2078,2405.5,2403.8,3.2078]
[1726241895220,4.49,2405.0,2403.8,3.2078]
[1726241895406,0.41576,2404.9,2403.8,3.4067]
[1726241895610,0.41575,2404.9,2403.9,8.88571548]
[1726241895811,0.41575,2404.9,2404.3,0.41585]
[1726241896022,0.41575,2404.9,2403.9,8.88571548]
[1726241896023,3.2078,2404.6,2404.0,0.4159]
[1726241896229,3.2078,2404.6,2403.9,8.88571548]
[1726241896521,2.0194,2404.8,2403.4,3.2078]
[1726241896522,0.41588,2404.2,2403.4,3.2078]
[1726241896713,7.6978,2404.3,2403.7,0.41596]
[1726241896906,0.41589,2404.1,2403.6,9.10899521]
[1726241897111,3.2078,2404.0,2403.8,8.69303521]
[1726241897418,3.2078,2404.0,2403.7,0.41595]
[1726241897610,4.49,2404.3,2403.5,8.74839717]
[1726241897611,3.2078,2404.1,2403.5,8.74839717]
[1726241897811,3.2078,2404.1,2403.8,0.41593]
[1726241898013,3.6237,2404.1,2403.6,0.41596]
[1726241898215,3.2078,2403.7,2403.4,0.416]
[1726241898525,3.2078,2403.7,2403.3,0.41602]
[1726241898722,0.41595,2403.8,2403.4,3.2078]
[1726241899022,0.987,2404.2,2403.6,0.41596]
[1726241899324,3.2078,2404.0,2403.0,0.6142]
[1726241899530,0.987,2404.2,2403.2,3.2078]
[1726241899820,4.2522,2404.8,2404.1,3.2078]
[1726241900022,4.2522,2404.8,2404.6,0.41579]
[1726241900220,4.2522,2404.8,2404.1,4.2382]
[1726241900429,4.2522,2404.8,2404.1,5.27792]
[1726241900612,3.62361,2404.6,2403.6,1.03994]
[1726241900920,0.41589,2404.1,2403.6,9.03053642]
[1726241901113,0.41588,2404.2,2403.7,0.41596]
[1726241901313,0.41588,2404.2,2403.6,8.61456642]
[1726241901314,1.0463,2404.3,2403.4,4.2382]
[1726241901614,7.6978,2404.7,2403.7,3.2078]
[1726241901817,7.6978,2404.7,2403.8,1.03986]
[1726241901818,0.9917,2404.7,2403.8,1.03986]
[1726241902018,0.9917,2404.7,2404.2,0.41586]
[1726241902220,0.9917,2404.7,2403.8,9.90991465]
[1726241902519,3.2078,2404.1,2402.9,3.4198]
[1726241902716,5.4817,2404.0,2403.5,0.41598]
[1726241903017,5.4817,2404.0,2402.9,3.2078]
[1726241903018,5.4817,2404.0,2402.9,4.2382]
[1726241903220,5.89761,2404.0,2403.5,0.41598]
[1726241903421,0.9917,2404.0,2403.2,4.24792]
[1726241903716,0.9917,2404.0,2403.3,8.9875425]
[1726241903920,9.10541,2404.0,2403.5,0.41598]
[1726241904116,0.41592,2403.9,2403.5,0.41598]
[1726241904308,5.4817,2404.0,2403.3,8.9875425]
[1726241904508,3.2078,2404.5,2404.0,0.41589]
[1726241904723,1.0493,2404.7,2403.7,1.0589]
[1726241904916,1.0493,2404.7,2404.3,0.41584]
[1726241905215,1.0493,2404.7,2404.3,0.41585]
[1726241905418,0.41581,2404.6,2403.8,3.2078]
[1726241905816,1.0493,2404.7,2403.8,3.2078]
[1726241905817,1.46509,2404.7,2403.8,3.2078]
[1726241906016,0.4158,2404.6,2404.1,0.41588]
[1726241906213,0.41585,2404.4,2403.9,0.41592]
[1726241906414,3.62368,2404.2,2403.8,3.2078]
[1726241906621,4.49,2404.1,2403.2,1.0589]
[1726241906824,0.41591,2404.0,2403.3,3.2078]
[1726241907013,5.5393,2404.1,2403.4,8.87333494]
[1726241907321,0.41593,2403.9,2403.4,0.416]
[1726241907522,5.5393,2404.1,2403.5,8.56876096]
[1726241908018,0.41593,2403.9,2403.4,8.98476096]
[1726241908220,0.41593,2403.9,2403.3,3.2078]
[1726241908221,4.49,2403.7,2403.3,3.2078]
[1726241908518,4.49,2403.7,2403.1,0.41605]
[1726241908519,7.6978,2403.7,2403.1,0.41605]
[1726241908724,4.49,2403.6,2403.0,3.62387]
[1726241908926,0.416,2403.5,2403.0,3.62387]
[1726241909121,0.41601,2403.4,2403.0,3.2078]
[1726241909324,0.41602,2403.4,2402.9,0.41608]
[1726241909622,0.41601,2403.4,2402.9,0.41608]
[1726241910027,0.41601,2403.4,2402.8,3.2078]
[1726241910321,1.3829,2403.5,2403.0,0.41607]
[1726241910712,0.9669,2403.5,2402.8,3.2078]
[1726241911223,0.9669,2403.5,2403.2,0.41603]
[1726241911424,0.9669,2403.5,2403.3,0.41603]
[1726241911619,0.9669,2403.5,2403.3,0.41602]
[1726241912027,0.9669,2403.5,2403.2,0.41603]
[1726241912227,0.41602,2403.4,2402.8,3.2078]
[1726241912427,4.49,2403.4,2403.1,0.41605]
[1726241912726,4.49,2403.4,2402.8,4.24809]
[1726241912923,4.49,2402.9,2402.6,8.9574174]
[1726241913125,4.49,2402.9,2402.2,3.2078]
[1726241913622,0.41612,2402.8,2402.4,0.41617]
[1726241913927,7.6978,2402.5,2401.3,4.24874]
[1726241914127,0.9782,2402.4,2401.4,1.04089]
[1726241914325,0.9782,2402.4,2401.4,8.83187127]
[1726241914326,3.2078,2401.9,2401.4,8.83187127]
[1726241914529,3.2078,2401.8,2401.4,8.83187127]
[1726241914826,1.04064,2402.0,2401.1,3.2078]
[1726241914827,1.0272,2402.0,2401.1,3.2078]
[1726241915025,1.0272,2402.0,2401.4,3.2078]
[1726241915329,1.0272,2402.0,2401.3,1.04091]
[1726241915330,4.235,2402.0,2401.1,12.85884329]
[1726241915521,4.49,2401.7,2401.1,3.2078]
[1726241915717,4.49,2401.7,2401.2,8.73261613]
[1726241916030,4.49,2401.7,2401.1,3.2078]
[1726241916326,1.0272,2402.0,2400.5,4.24909]
[1726241916327,4.49,2401.4,2400.5,4.24909]
[1726241916527,4.90637,2401.4,2400.9,0.41643]
[1726241916737,4.90637,2401.4,2400.6,1.04125]
[1726241916738,4.49,2401.4,2400.6,1.04125]
[1726241917029,4.90636,2401.4,2401.0,0.41642]
[1726241917223,4.90636,2401.4,2400.7,4.50611661]
[1726241917224,7.6978,2401.1,2400.7,1.81409662]
[1726241917432,3.2078,2400.8,2399.5,0.212]
[1726241917726,4.49,2400.2,2399.8,0.41662]
[1726241917920,4.90657,2400.2,2399.4,3.2078]
[1726241918120,4.49,2400.6,2399.6,3.2078]
[1726241918328,4.49,2400.6,2399.9,3.2078]
[1726241918523,4.49,2400.6,2400.2,0.41656]
[1726241918725,4.49,2400.6,2400.1,0.41657]
[1726241918920,4.49,2400.6,2399.9,3.2078]
[1726241919325,4.49,2400.6,2400.0,8.64673164]
[1726241919525,4.49,2400.6,2399.9,3.2078]
[1726241919823,4.49,2400.6,2400.1,0.41657]
[1726241920023,4.49,2400.6,2400.2,0.41656]
[1726241920222,4.49,2400.6,2399.8,3.2078]
[1726241920533,3.2078,2400.5,2399.9,0.41661]
[1726241920836,3.2078,2400.5,2399.7,8.52806149]
[1726241921034,1.04113,2400.9,2400.4,0.41652]
[1726241921035,4.49,2400.9,2400.4,0.41652]
[1726241921228,7.6978,2400.5,2399.4,5.49105552]
[1726241921432,0.41656,2400.3,2399.7,0.41664]
[1726241921627,0.41658,2400.2,2399.6,0.41666]
[1726241921832,4.49,2399.9,2399.4,3.62449]
[1726241922024,4.49,2399.9,2399.7,0.41665]
[1726241922341,3.2078,2400.0,2399.4,3.2078]
[1726241922531,0.9809,2400.1,2399.4,3.2078]